bitfinex-derivatives/quotes_SOLF0:USTF0_20250929
["timestamp","ask_amount","ask_price","bid_price","bid_amount"]
[1759109595458,4.2967,209.37,209.29,122.00626464]
[1759109595662,4.2967,209.37,209.29,116.64]
[1759109596461,5.69819966,209.37,209.29,116.64]
[1759109596665,1.40149966,209.37,209.29,116.64]
[1759109596861,1.40149966,209.37,209.29,122.00626464]
[1759109597066,1.40149966,209.37,209.3,4.2978]
[1759109597367,5.69819966,209.37,209.3,4.2978]
[1759109598866,4.2967,209.37,209.3,5.69929966]
[1759109599661,4.2967,209.37,209.3,1.40149966]
[1759109600467,7.71,209.36,209.3,1.40149966]
[1759109604269,4.297,209.35,209.29,116.64]
[1759109604475,11.717,209.35,209.29,116.64]
[1759109604769,11.717,209.35,209.29,116.58]
[1759109609369,1.40149966,209.34,209.29,116.58]
[1759109610673,66.8366,209.37,209.29,116.58]
[1759109610674,11.7177,209.32,209.29,116.58]
[1759109611777,4.2977,209.32,209.29,116.58]
[1759109612075,11.7171,209.35,209.29,116.58]
[1759109613471,11.7171,209.35,209.29,117.98149966]
[1759109614076,11.7174,209.33,209.29,117.98149966]
[1759109615866,7.42,209.32,209.29,117.98149966]
[1759109616376,4.2974,209.33,209.29,116.58]
[1759109616672,7.42,209.32,209.29,116.58]
[1759109618783,7.42,209.36,209.29,117.98149966]
[1759109618988,1.40149966,209.39,209.31,1.40149966]
[1759109619181,7.42,209.4,209.31,1.40149966]
[1759109619379,8.82149966,209.4,209.31,1.40149966]
[1759109619978,4.2967,209.37,209.31,1.40149966]
[1759109620172,7.42,209.38,209.31,1.40149966]
[1759109620575,4.2969,209.36,209.31,1.40149966]
[1759109620779,11.7169,209.36,209.31,1.40149966]
[1759109621279,7.42,209.35,209.31,1.40149966]
[1759109621883,11.7171,209.35,209.31,1.40149966]
[1759109622077,11.7171,209.35,209.29,123.3477643]
[1759109622781,7.42,209.35,209.29,123.3477643]
[1759109624182,11.7171,209.35,209.29,123.3477643]
[1759109624381,11.7171,209.35,209.3,5.36626464]
[1759109624885,11.7171,209.35,209.29,123.3477643]
[1759109625886,11.7171,209.35,209.3,5.36626464]
[1759109626788,11.7171,209.35,209.29,123.3477643]
[1759109627386,8.82149966,209.38,209.3,5.36626464]
[1759109627993,4.2969,209.36,209.3,5.36626464]
[1759109630383,11.7171,209.35,209.3,5.36626464]
[1759109630579,7.42,209.34,209.3,5.36626464]
[1759109630778,7.42,209.33,209.3,5.36626464]
[1759109630979,1.40149966,209.36,209.29,121.94626464]
[1759109631186,7.42,209.35,209.29,121.94626464]
[1759109632490,7.42,209.35,209.29,116.58]
[1759109632689,11.7175,209.33,209.29,116.58]
[1759109636292,7.75,209.32,209.29,116.58]
[1759109640495,4.2975,209.33,209.29,116.58]
[1759109640696,12.047,209.35,209.29,117.98149966]
[1759109640992,4.297,209.35,209.29,117.98149966]
[1759109641194,4.297,209.35,209.29,123.3477643]
[1759109642395,4.2973,209.34,209.29,123.3477643]
[1759109642594,7.75,209.34,209.29,121.94626464]
[1759109643291,7.75,209.34,209.29,123.3477643]
[1759109643995,12.0473,209.34,209.29,123.3477643]
[1759109644895,4.2967,209.36,209.29,123.3477643]
[1759109645103,7.75,209.37,209.29,123.3477643]
[1759109645104,7.75,209.37,209.31,5.36626464]
[1759109645399,9.15149966,209.42,209.33,6.7677643]
[1759109645600,9.15149966,209.42,209.33,123.2677643]
[1759109647101,4.2962,209.39,209.33,123.2677643]
[1759109647300,4.2962,209.39,209.33,117.90149966]
[1759109650099,7.75,209.4,209.33,117.90149966]
[1759109650899,4.2962,209.39,209.33,117.90149966]
[1759109651900,4.2962,209.39,209.33,123.2677643]
[1759109652298,4.2962,209.39,209.33,117.90149966]
[1759109652709,4.2962,209.39,209.33,123.2677643]
[1759109653205,4.2962,209.39,209.33,127.5650643]
[1759109653708,4.2962,209.39,209.35,1.40149966]
[1759109656108,7.83,209.45,209.37,1.40149966]
[1759109656314,7.83,209.49,209.4,1.40149966]
[1759109656505,7.83,209.49,209.4,117.86149966]
[1759109657011,7.83,209.49,209.42,1.40149966]
[1759109657407,7.83,209.46,209.4,117.86149966]
[1759109658210,7.83,209.46,209.4,116.46]
[1759109658608,4.295,209.45,209.4,116.46]
[1759109659806,4.2945,209.47,209.4,116.46]
[1759109660009,7.83,209.5,209.4,116.46]
[1759109660809,7.83,209.5,209.4,121.82626464]
[1759109661012,7.83,209.5,209.42,4.2954]
[1759109662713,7.83,209.5,209.41,2.18737592]
[1759109663512,4.2942,209.49,209.41,2.18737592]
[1759109664415,12.0144,209.48,209.4,116.46]
[1759109665312,7.72,209.48,209.4,116.46]
[1759109665510,66.7969,209.49,209.4,116.46]
[1759109665709,7.72,209.48,209.4,116.46]
[1759109666616,4.2948,209.46,209.4,116.46]
[1759109675720,12.0143,209.48,209.4,116.46]
[1759109677322,12.0143,209.48,209.4,120.7557]
[1759109678121,4.2946,209.47,209.4,120.7557]
[1759109685229,4.2946,209.47,209.4,116.46]
[1759109686126,7.72,209.44,209.4,116.46]
[1759109686623,4.2954,209.43,209.4,116.46]
[1759109687921,7.72,209.44,209.4,116.46]
[1759109689834,4.2949,209.45,209.4,116.46]
[1759109690135,7.72,209.44,209.4,116.46]
[1759109690626,7.72,209.44,209.39,116.34]
[1759109692733,4.2949,209.45,209.39,116.34]
[1759109693124,12.0152,209.44,209.39,116.34]
[1759109695034,4.2952,209.44,209.39,116.34]
[1759109696136,4.2952,209.44,209.39,121.70626464]
[1759109698437,11.7647,209.46,209.39,121.70626464]
[1759109699333,11.7647,209.46,209.4,5.36626464]
[1759109699533,4.2947,209.46,209.4,5.36626464]
[1759109700237,4.2947,209.46,209.41,5.36626464]
[1759109700440,11.7647,209.46,209.41,5.36626464]
[1759109700940,4.2947,209.46,209.41,5.36626464]
[1759109701234,7.47,209.45,209.41,5.36626464]
[1759109701737,7.47,209.48,209.41,5.36626464]
[1759109701936,7.47,209.53,209.44,5.36626464]
[1759109702134,2.18737592,209.54,209.44,28.5]
[1759109702330,4.294,209.5,209.44,28.5]
[1759109702538,7.47,209.53,209.44,28.5]
[1759109702831,4.2946,209.47,209.44,28.5]
[1759109703040,7.47,209.46,209.44,28.5]
[1759109703541,66.794,209.5,209.44,28.5]
[1759109703739,7.47,209.49,209.44,28.5]
[1759109704642,2.18737592,209.5,209.44,28.5]
[1759109705745,11.7646,209.47,209.44,28.5]
[1759109705945,11.7646,209.47,209.44,42.67073232]
[1759109706244,7.47,209.46,209.44,42.67073232]
[1759109706645,7.47,209.48,209.44,42.67073232]
[1759109706841,4.2941,209.49,209.44,42.67073232]
[1759109707042,11.7641,209.49,209.44,42.67073232]
[1759109712448,12.1644,209.48,209.44,42.67073232]
[1759109712744,66.7859,209.53,209.44,42.67073232]
[1759109713045,7.87,209.55,209.44,48.03699696]
[1759109713246,10.05737592,209.55,209.44,48.03699696]
[1759109713643,4.2935,209.52,209.45,4.2947]
[1759109714956,4.2935,209.52,209.45,9.66096464]
[1759109715456,4.2935,209.52,209.46,5.36626464]
[1759109719445,4.2935,209.52,209.45,5.36626464]
[1759109719649,4.2935,209.52,209.44,46.96563232]
[1759109719650,4.2935,209.52,209.46,5.36626464]
[1759109720155,4.2935,209.52,209.45,5.36626464]
[1759109722464,4.2935,209.52,209.46,5.36626464]
[1759109722755,4.2935,209.52,209.46,6.76553476]
[1759109723057,4.2935,209.52,209.46,1.39927012]
[1759109723257,4.2935,209.52,209.46,6.76553476]
[1759109731157,4.2935,209.52,209.46,1.39927012]
[1759109731753,7.87,209.53,209.46,5.69377012]
[1759109731960,7.87,209.53,209.48,1.39927012]
[1759109732759,7.76,209.54,209.5,1.39927012]
[1759109733051,7.76,209.55,209.5,1.39927012]
[1759109733453,4.2926,209.56,209.5,1.39927012]
[1759109733657,7.76,209.55,209.5,1.39927012]
[1759109733855,4.2926,209.56,209.5,1.39927012]
[1759109734052,7.76,209.55,209.5,1.39927012]
[1759109734247,4.2926,209.56,209.5,1.39927012]
[1759109734649,7.76,209.55,209.52,1.39927012]
[1759109738058,7.76,209.55,209.5,1.39927012]
[1759109739161,4.2926,209.56,209.5,1.39927012]
[1759109739661,7.76,209.55,209.5,1.39927012]
[1759109739860,4.2926,209.56,209.5,1.39927012]
[1759109740054,7.76,209.55,209.5,1.39927012]
[1759109740255,7.76,209.55,209.51,1.39927012]
[1759109740754,4.2926,209.56,209.51,1.39927012]
[1759109741357,7.76,209.55,209.51,1.39927012]
[1759109741552,4.2926,209.56,209.51,1.39927012]
[1759109741760,7.76,209.55,209.51,1.39927012]
[1759109742357,4.2926,209.56,209.51,1.39927012]
[1759109743258,7.76,209.55,209.51,1.39927012]
[1759109743658,4.2926,209.56,209.51,1.39927012]
[1759109743851,7.76,209.55,209.51,1.39927012]
[1759109744256,4.2926,209.56,209.51,1.39927012]
[1759109745255,7.76,209.57,209.51,1.39927012]
[1759109745965,12.0525,209.57,209.51,1.39927012]
[1759109746765,7.76,209.57,209.53,1.39927012]
[1759109746965,4.292,209.59,209.53,1.39927012]
[1759109747765,12.052,209.59,209.53,1.39927012]
[1759109748561,12.052,209.59,209.55,1.39927012]
[1759109748562,7.76,209.59,209.55,1.39927012]
[1759109749061,4.2916,209.61,209.55,1.39927012]
[1759109749765,12.0516,209.61,209.55,1.39927012]
[1759109751264,7.76,209.61,209.59,1.39927012]
[1759109751466,7.76,209.68,209.59,1.39927012]
[1759109752068,7.76,209.66,209.59,1.39927012]
[1759109752666,12.0506,209.66,209.59,1.39927012]
[1759109755869,4.2909,209.65,209.59,1.39927012]
[1759109756065,7.79,209.64,209.58,85.74]
[1759109756262,4.2909,209.65,209.58,85.74]
[1759109756971,7.79,209.63,209.58,85.74]
[1759109757973,4.2912,209.64,209.58,85.74]
[1759109758769,7.79,209.63,209.58,85.74]
[1759109758966,4.2912,209.64,209.58,85.74]
[1759109759767,7.79,209.63,209.58,85.74]
[1759109760267,4.2914,209.62,209.57,1.39927012]
[1759109760470,7.79,209.61,209.57,117.49927012]
[1759109760873,7.79,209.61,209.55,42.53503674]
[1759109761070,7.79,209.61,209.57,1.39927012]
[1759109762875,4.2909,209.65,209.56,120.3724]
[1759109762876,4.2909,209.65,209.59,1.39927012]
[1759109763076,7.79,209.64,209.59,1.39927012]
[1759109763579,7.79,209.63,209.59,1.39927012]
[1759109763765,4.2911,209.64,209.59,1.39927012]
[1759109763969,7.79,209.63,209.56,120.3724]
[1759109764176,4.2911,209.64,209.59,1.39927012]
[1759109764373,7.79,209.63,209.59,1.39927012]
[1759109764869,4.2911,209.64,209.59,1.39927012]
[1759109765088,7.79,209.63,209.59,1.39927012]
[1759109765277,12.0806,209.66,209.59,1.39927012]
[1759109765479,12.0806,209.66,209.57,4.2922]
[1759109765679,12.0806,209.66,209.59,1.39927012]
[1759109768080,4.2909,209.65,209.59,1.39927012]
[1759109768682,7.79,209.64,209.59,1.39927012]
[1759109769075,4.2909,209.65,209.59,1.39927012]
[1759109769271,7.79,209.64,209.59,1.39927012]
[1759109769880,4.2909,209.65,209.59,1.39927012]
[1759109770078,7.79,209.64,209.59,1.39927012]
[1759109770585,4.2909,209.65,209.59,117.45927012]
[1759109770777,12.0811,209.64,209.59,117.45927012]
[1759109771077,7.79,209.63,209.59,117.45927012]
[1759109771382,4.2911,209.64,209.59,117.45927012]
[1759109772183,7.3,209.63,209.59,117.45927012]
[1759109772375,7.3,209.63,209.59,117.43927012]
[1759109772575,7.3,209.63,209.59,1.39927012]
[1759109772881,7.3,209.63,209.6,116.04]
[1759109773581,4.2911,209.64,209.6,116.04]
[1759109773770,7.3,209.63,209.6,116.04]
[1759109774169,4.2911,209.64,209.6,116.04]
[1759109774383,7.3,209.63,209.6,116.04]
[1759109775383,4.2911,209.64,209.6,116.04]
[1759109775778,7.3,209.63,209.6,116.04]
[1759109776375,4.2911,209.64,209.6,116.04]
[1759109777178,7.3,209.63,209.6,116.04]
[1759109780683,7.3,209.63,209.59,1.39927012]
[1759109780884,7.3,209.63,209.6,116.02]
[1759109781082,4.2906,209.66,209.6,116.02]
[1759109781379,1.39927012,209.68,209.61,116.02]
[1759109781579,7.3,209.67,209.61,116.02]
[1759109782178,2.18336388,209.71,209.61,116.02]
[1759109782478,4.2909,209.65,209.61,116.02]
[1759109782679,7.3,209.64,209.61,116.02]
[1759109783582,4.2909,209.65,209.61,116.02]
[1759109783880,4.2911,209.64,209.61,116.02]
[1759109784082,7.41,209.63,209.6,116.02]
[1759109784688,66.7406,209.67,209.6,116.02]
[1759109784883,66.7406,209.67,209.55,47.90130138]
[1759109785085,7.41,209.66,209.56,116.02]
[1759109785288,11.7015,209.62,209.57,116.02]
[1759109785588,7.41,209.61,209.57,116.02]
[1759109786682,66.7493,209.64,209.57,116.02]
[1759109786888,7.41,209.63,209.57,116.02]
[1759109787089,66.7493,209.64,209.56,116.0]
[1759109787483,7.41,209.63,209.56,116.0]
[1759109787688,11.702,209.6,209.56,116.0]
[1759109788487,4.2921,209.59,209.55,38.24223674]
[1759109788687,7.41,209.58,209.55,116.0]
[1759109791387,11.7024,209.58,209.55,116.0]
[1759109792186,7.41,209.59,209.51,5.36626464]
[1759109792391,7.41,209.58,209.5,352.46626464]
[1759109792597,7.41,209.58,209.51,116.0]
[1759109792994,4.2929,209.55,209.51,116.0]
[1759109794890,4.2929,209.55,209.52,116.0]
[1759109800303,11.7032,209.54,209.52,116.0]
[1759109800706,7.41,209.53,209.46,126.08400941]
[1759109801003,7.41,209.57,209.47,116.0]
[1759109801301,4.2927,209.56,209.48,5.36626464]
[1759109801501,4.2927,209.56,209.49,116.0]
[1759109801701,7.41,209.58,209.48,5.36626464]
[1759109801906,7.41,209.58,209.5,116.0]
[1759109802406,7.41,209.56,209.5,116.0]
[1759109802605,7.41,209.56,209.46,170.39203078]
[1759109802798,7.41,209.56,209.47,116.02]
[1759109803494,66.778,209.55,209.47,116.02]
[1759109803695,66.778,209.55,209.46,165.02576614]
[1759109803895,7.41,209.54,209.47,116.02]
[1759109804500,11.704,209.5,209.47,116.02]
[1759109805203,66.7711,209.57,209.38,121.38626464]
[1759109805204,7.41,209.42,209.38,121.38626464]
[1759109805506,7.41,209.44,209.38,116.02]
[1759109805702,66.813,209.44,209.38,116.02]
[1759109806107,66.8161,209.43,209.38,116.02]
[1759109806708,7.41,209.42,209.38,116.02]
[1759109807007,66.8161,209.43,209.38,116.02]
[1759109807204,7.41,209.41,209.38,116.02]
[1759109807409,2.18336388,209.42,209.38,116.02]
[1759109807601,7.41,209.39,209.38,116.02]
[1759109808409,4.296,209.4,209.38,116.02]
[1759109810110,7.41,209.42,209.35,14.29426042]
[1759109810408,7.41,209.46,209.32,2.18336388]
[1759109810905,7.41,209.46,209.33,49.04]
[1759109811298,7.41,209.46,209.32,2.18336388]
[1759109811507,7.41,209.46,209.34,67.16]
[1759109811698,4.2951,209.44,209.34,71.457]
[1759109812205,4.2951,209.44,209.34,18.61342647]
[1759109812509,4.2951,209.44,209.35,116.06]
[1759109815306,4.2951,209.44,209.36,116.06]
[1759109815505,4.2951,209.44,209.37,116.06]
[1759109816312,4.2951,209.44,209.33,4.2973]
[1759109816510,4.2951,209.44,209.34,116.06]
[1759109817118,4.2951,209.44,209.34,130.57838922]
[1759109819206,4.2955,209.42,209.34,130.57838922]
[1759109821109,4.2955,209.42,209.34,14.51838922]
[1759109821307,4.2955,209.42,209.35,116.06]
[1759109821710,4.2955,209.42,209.36,116.06]
[1759109822313,4.2951,209.44,209.36,116.06]
[1759109822914,4.2951,209.44,209.36,120.3565]
[1759109825119,7.33,209.5,209.37,2.18336388]
[1759109826415,7.33,209.5,209.4,2.18336388]
[1759109826610,7.33,209.54,209.41,116.08]
[1759109827217,68.96216388,209.55,209.41,116.08]
[1759109827416,7.33,209.54,209.41,116.08]
[1759109827623,11.6234,209.52,209.43,4.2951]
[1759109828115,7.33,209.56,209.43,2.18336388]
[1759109828516,4.293,209.54,209.46,4.2945]
[1759109828715,4.293,209.54,209.47,116.06]
[1759109831518,11.623,209.54,209.47,116.06]
[1759109831914,4.2934,209.53,209.47,116.06]
[1759109832114,66.7715,209.57,209.43,6.47846388]
[1759109832115,7.88,209.51,209.48,116.06]
[1759109832320,7.88,209.54,209.47,116.06]
[1759109832520,68.96126388,209.55,209.47,116.06]
[1759109832721,7.88,209.54,209.47,116.06]
[1759109832921,68.96126388,209.55,209.47,116.06]
[1759109833223,7.88,209.53,209.46,114.32]
[1759109833520,66.7807,209.54,209.46,114.32]
[1759109833725,7.88,209.53,209.46,114.32]
[1759109834028,7.88,209.49,209.46,114.32]
[1759109834728,4.2939,209.5,209.46,114.32]
[1759109835530,4.2939,209.5,209.43,4.2951]
[1759109835724,4.2939,209.5,209.44,116.04]
[1759109836123,12.1733,209.53,209.44,116.04]
[1759109836519,12.1733,209.53,209.45,116.04]
[1759109836718,4.2928,209.55,209.46,4.2945]
[1759109837124,4.2928,209.55,209.47,116.04]
[1759109838626,7.88,209.57,209.46,4.2945]
[1759109838627,7.88,209.57,209.48,116.04]
[1759109838930,7.88,209.57,209.49,116.04]
[1759109839128,7.88,209.57,209.46,2.18336388]
[1759109839617,7.88,209.57,209.49,4.294]
[1759109840623,4.2923,209.58,209.5,4.2936]
[1759109840832,12.1723,209.58,209.51,116.04]
[1759109841028,12.1723,209.58,209.52,116.04]
[1759109841220,12.1723,209.58,209.5,4.2936]
[1759109841425,12.1723,209.58,209.51,116.04]
[1759109843034,13.57077004,209.58,209.51,116.04]
[1759109843627,13.57077004,209.58,209.5,4.2936]
[1759109843832,13.57077004,209.58,209.51,116.02]
[1759109844632,13.57077004,209.58,209.52,116.02]
[1759109845535,5.69077004,209.58,209.53,116.02]
[1759109845735,7.72,209.57,209.53,116.02]
[1759109846033,5.69077004,209.58,209.5,5.69207004]
[1759109846337,13.41077004,209.58,209.51,116.02]
[1759109846636,13.41077004,209.58,209.5,5.69207004]
[1759109846933,13.41077004,209.58,209.51,116.02]
[1759109848134,13.41077004,209.58,209.5,5.69207004]
[1759109848338,13.41077004,209.58,209.51,116.02]
[1759109849138,13.41077004,209.58,209.52,116.02]
[1759109850835,12.0123,209.58,209.51,4.2935]
[1759109851037,12.0123,209.58,209.52,116.02]
[1759109852041,12.0123,209.58,209.51,4.2935]
[1759109852335,12.0123,209.58,209.52,116.0]
[1759109854238,4.2923,209.58,209.53,116.0]
[1759109854439,7.72,209.57,209.53,116.0]
[1759109855838,12.0117,209.61,209.53,116.0]
[1759109856138,4.2917,209.61,209.54,1.39847004]
[1759109857740,1.39847004,209.62,209.49,5.36626464]
[1759109857937,7.72,209.61,209.55,116.0]
[1759109858742,7.72,209.59,209.55,116.0]
[1759109858942,4.2919,209.6,209.55,116.0]
[1759109859241,9.11847004,209.62,209.5,4.2937]
[1759109859437,7.72,209.59,209.51,25.94]
[1759109860039,1.39847004,209.56,209.46,5.36626464]
[1759109860240,7.72,209.55,209.47,49.71847004]
[1759109860544,7.72,209.55,209.49,1.39847004]
[1759109861342,12.013,209.55,209.49,1.39847004]
[1759109863245,7.72,209.55,209.49,5.69237004]
[1759109864354,7.72,209.55,209.49,1.39847004]
[1759109866953,7.72,209.55,209.47,53.68626464]
[1759109867154,7.72,209.55,209.49,1.39847004]
[1759109869153,7.72,209.55,209.49,6.76473468]
[1759109869853,7.72,209.55,209.5,115.98]
[1759109870152,4.2928,209.56,209.51,115.98]
[1759109870750,7.72,209.55,209.51,115.98]
[1759109870955,4.2928,209.56,209.51,115.98]
[1759109871156,7.72,209.55,209.51,115.98]
[1759109871356,4.2928,209.56,209.51,115.98]
[1759109872149,7.72,209.55,209.51,115.98]
[1759109872349,4.2928,209.56,209.51,115.98]
[1759109872558,7.72,209.55,209.51,115.98]
[1759109873558,7.72,209.53,209.49,5.36626464]
[1759109873754,68.17967004,209.54,209.45,5.36626464]
[1759109873755,7.95,209.51,209.45,5.36626464]
[1759109873950,7.95,209.51,209.46,18.2]
[1759109874150,1.39847004,209.52,209.46,18.2]
[1759109874151,7.95,209.48,209.46,18.2]
[1759109874755,4.294,209.49,209.46,18.2]
[1759109874955,7.95,209.47,209.44,44.4]
[1759109877158,1.39847004,209.5,209.44,44.4]
[1759109877159,7.95,209.49,209.44,44.4]
[1759109877359,1.39847004,209.5,209.44,44.4]
[1759109877560,7.95,209.49,209.44,44.4]
[1759109877761,1.39847004,209.5,209.44,44.4]
[1759109878264,9.34847004,209.5,209.44,44.4]
[1759109878566,4.2941,209.49,209.44,44.4]
[1759109878769,7.95,209.48,209.44,44.4]
[1759109879562,5.69207004,209.51,209.44,44.4]
[1759109879757,7.95,209.5,209.44,44.4]
[1759109879962,12.244,209.5,209.44,44.4]
[1759109881168,4.2942,209.49,209.44,44.4]
[1759109881369,12.2442,209.49,209.44,44.4]
[1759109881562,7.95,209.5,209.43,5.36626464]
[1759109881767,7.95,209.5,209.44,34.16]
[1759109882471,7.95,209.5,209.43,5.36626464]
[1759109882769,4.2944,209.48,209.44,61.06]
[1759109883167,7.95,209.5,209.44,61.06]
[1759109883168,12.2439,209.5,209.44,61.06]
[1759109883364,7.95,209.53,209.45,6.76473468]
[1759109883968,7.95,209.53,209.45,1.39847004]
[1759109884170,4.2929,209.55,209.49,1.39847004]
[1759109884370,7.95,209.56,209.49,1.39847004]
[1759109884670,7.95,209.56,209.5,79.54]
[1759109884971,13.64127004,209.56,209.5,79.54]
[1759109885766,12.243,209.55,209.5,79.54]
[1759109886170,4.2932,209.54,209.5,79.54]
[1759109886363,7.95,209.53,209.47,5.36626464]
[1759109886579,7.95,209.53,209.46,5.36626464]
[1759109886774,1.39847004,209.52,209.47,82.78]
[1759109887175,7.95,209.51,209.47,82.78]
[1759109889576,7.95,209.5,209.47,82.78]
[1759109889879,4.2938,209.51,209.47,82.78]
[1759109890280,12.2438,209.51,209.47,82.78]
[1759109890782,12.2438,209.51,209.45,6.76473468]
[1759109891080,7.95,209.51,209.47,116.24]
[1759109891280,4.2932,209.53,209.47,117.63847004]
[1759109891581,4.2928,209.55,209.47,117.63847004]
[1759109892380,4.2928,209.55,209.47,123.00473468]
[1759109893075,4.2931,209.54,209.47,123.00473468]
[1759109893484,7.83,209.54,209.47,5.36626464]
[1759109893782,9.22847004,209.54,209.48,38.78]
[1759109894282,9.22847004,209.54,209.49,68.44]
[1759109894578,4.2934,209.52,209.49,68.44]
[1759109894782,7.83,209.51,209.48,97.16]
[1759109894981,1.39847004,209.52,209.48,97.16]
[1759109895177,12.1238,209.5,209.44,5.36626464]
[1759109895478,12.1238,209.5,209.47,116.26]
[1759109896280,12.1238,209.5,209.43,6.76473468]
[1759109896481,12.1238,209.5,209.44,116.24]
[1759109897682,1.39847004,209.54,209.45,6.76473468]
[1759109897878,1.39847004,209.54,209.44,121.60626464]
[1759109897879,7.83,209.53,209.44,121.60626464]
[1759109898186,66.7778,209.55,209.44,121.60626464]
[1759109898187,7.83,209.51,209.44,116.24]
[1759109898484,7.83,209.51,209.42,5.36626464]
[1759109898685,7.83,209.49,209.42,5.36626464]
[1759109898875,7.83,209.49,209.43,116.4]
[1759109899681,4.2947,209.46,209.43,116.4]
[1759109899882,7.83,209.49,209.43,116.4]
[1759109901393,4.2939,209.5,209.43,116.4]
[1759109901687,9.22847004,209.54,209.44,6.76473468]
[1759109901893,4.2938,209.51,209.44,6.76473468]
[1759109902993,4.2933,209.53,209.44,11.05963468]
[1759109903389,9.22847004,209.54,209.44,11.05963468]
[1759109903788,7.63,209.53,209.44,11.05963468]
[1759109904290,4.2931,209.54,209.46,4.2946]
[1759109904496,4.2931,209.54,209.47,5.36626464]
[1759109905702,7.63,209.56,209.47,9.66056464]
[1759109905703,11.9227,209.56,209.47,9.66056464]
[1759109906099,11.9227,209.56,209.48,5.36626464]
[1759109906397,4.2929,209.55,209.49,82.16]
[1759109906599,7.63,209.56,209.49,82.16]
[1759109906986,7.63,209.56,209.48,5.36626464]
[1759109907192,11.9231,209.54,209.49,37.78]
[1759109908695,4.2926,209.56,209.49,43.14626464]
[1759109909397,7.63,209.57,209.49,37.78]
[1759109909590,7.63,209.57,209.47,5.36626464]
[1759109909793,7.63,209.57,209.43,10.24016125]
[1759109909794,4.2932,209.54,209.5,64.3]
[1759109910598,4.2932,209.54,209.48,5.36626464]
[1759109910798,7.63,209.57,209.49,68.58]
[1759109911099,7.63,209.57,209.49,73.94626464]
[1759109911301,4.2927,209.56,209.49,73.94626464]
[1759109911602,4.2927,209.56,209.49,78.24006464]
[1759109912104,4.2921,209.59,209.51,5.36626464]
[1759109912296,7.63,209.62,209.52,4.2933]
[1759109912599,7.63,209.62,209.51,5.36626464]
[1759109912992,4.2917,209.61,209.51,5.36626464]
[1759109913198,4.2917,209.61,209.53,4.2931]
[1759109914501,4.292,209.59,209.54,112.4]
[1759109914693,66.7553,209.62,209.54,112.4]
[1759109914897,7.63,209.6,209.54,112.4]
[1759109915602,7.63,209.57,209.54,112.4]
[1759109918804,4.2923,209.58,209.54,112.4]
[1759109919501,7.63,209.57,209.54,112.4]
[1759109919806,7.63,209.57,209.48,116.28]
[1759109920001,68.95602875,209.58,209.48,116.28]
[1759109920204,11.9234,209.53,209.48,116.28]
[1759109920604,7.63,209.53,209.46,121.62626464]
[1759109921108,7.63,209.53,209.46,116.26]
[1759109921803,4.2936,209.52,209.46,116.26]
[1759109922004,7.63,209.53,209.46,116.26]
[1759109922305,11.924,209.5,209.46,116.26]
[1759109925108,11.924,209.5,209.46,116.22]
[1759109926005,66.7876,209.52,209.44,5.36626464]
[1759109926305,66.8159,209.43,209.37,5.36626464]
[1759109926508,66.8159,209.43,209.33,8.0537325]